Workbook

Sheet Title
B14: A tool for calculating lime application rates for acidic soils and comparing the costs of lime from different suppliers.
A41: Version | B41: 02.06.2020

Sheet Lime cost comp
A1: Lime Sources Cost Comparison
A3: Lime rate calculator
C4: Enter | F4: Enter | S4: Lime rate factor
B5: Paddock name | G5: ha | S5: =IF($D$10="loam",4,IF($D$10="clay loam",4,IF($D$10="sandy loam",3,IF($D$10="sand",2,0)))) -> 0
S6: =IF($D$11="loam",4,IF($D$11="clay loam",4,IF($D$11="sandy loam",3,IF($D$11="sand",2,0)))) -> 0
A7: Zone | B7: Area | C7: Initial | D7: Soil | E7: Target | F7: Lime rate | G7: Org C % | H7: Adjusted | S7: =IF($D$12="loam",4,IF($D$12="clay loam",4,IF($D$12="sandy loam",3,IF($D$12="sand",2,0)))) -> 0
B8: ha | C8: pH (CaCl2) | D8: Texture | E8: pH (CaCl2) | H8: Lime rate | S8: =IF($D$13="loam",4,IF($D$13="clay loam",4,IF($D$13="sandy loam",3,IF($D$13="sand",2,0)))) -> 0
B9: Enter | C9: Enter | D9: Select | E9: Enter | G9: Select
A10: 1 | F10: =IF(B10<=0," ",(IF(E10>C10,+(E10-C10)*$S$5,0))) ->  | H10: =IF(G10="low",F10-(F10*0.25),F10) ->  | I10: =IF(E10-C10>1,"!!!"," ") ->  | J10: =IF(I10="!!!","See application rate info"," ") ->  | S10: =IF(ISERROR($H$10*$B$10*1/I21*100),"0",($H$10*$B$10*1/I21*100)) -> 0 | T10: =IF(ISERROR($H$10*$B$10*1/K21*100),"0",($H$10*$B$10*1/K21*100)) -> 0 | U10: =IF(ISERROR($H$10*$B$10*1/M21*100),"0",($H$10*$B$10*1/M21*100)) -> 0 | V10: =IF(ISERROR($H$10*$B$10*1/O21*100),"0",($H$10*$B$10*1/O21*100)) -> 0
A11: 2 | F11: =IF(B11<=0," ",(IF(E11>C11,+(E11-C11)*$S$6,0))) ->  | H11: =IF(G11="low",F11-(F11*0.25),F11) ->  | I11: =IF(E11-C11>1,"!!!"," ") ->  | J11: =IF(I11="!!!","See application rate information"," ") ->  | S11: =IF(ISERROR($H$11*$B$11*1/I21*100),"0",($H$11*$B$11*1/I21*100)) -> 0 | T11: =IF(ISERROR($H$11*$B$11*1/K21*100),"0",($H$11*$B$11*1/K21*100)) -> 0 | U11: =IF(ISERROR($H$11*$B$11*1/M21*100),"0",($H$11*$B$11*1/M21*100)) -> 0 | V11: =IF(ISERROR($H$11*$B$11*1/O21*100),"0",($H$11*$B$11*1/O21*100)) -> 0
A12: 3 | F12: =IF(B12<=0," ",(IF(E12>C12,+(E12-C12)*$S$7,0))) ->  | I12: =IF(E12-C12>1,"!!!"," ") ->  | J12: =IF(I12="!!!","See application rate information"," ") ->  | S12: =IF(ISERROR($H$12*$B$12*1/I21*100),"0",($H$12*$B$12*1/I21*100)) -> 0 | T12: =IF(ISERROR($H$12*$B$12*1/K21*100),"0",($H$12*$B$12*1/K21*100)) -> 0 | U12: =IF(ISERROR($H$12*$B$12*1/M21*100),"0",($H$12*$B$12*1/M21*100)) -> 0 | V12: =IF(ISERROR($H$12*$B$12*1/O21*100),"0",($H$12*$B$12*1/O21*100)) -> 0
A13: 4 | F13: =IF(B13<=0," ",(IF(E13>C13,+(E13-C13)*$S$8,0))) ->  | I13: =IF(E13-C13>1,"!!!"," ") ->  | J13: =IF(I13="!!!","See application rate information"," ") ->  | S13: =IF(ISERROR($H$13*$B$13*1/I21*100),"0",($H$13*$B$13*1/I21*100)) -> 0 | T13: =IF(ISERROR($H$13*$B$13*1/K21*100),"0",($H$13*$B$13*1/K21*100)) -> 0 | U13: =IF(ISERROR($H$13*$B$13*1/M21*100),"0",($H$13*$B$13*1/M21*100)) -> 0 | V13: =IF(ISERROR($H$13*$B$13*1/O21*100),"0",($H$13*$B$13*1/O21*100)) -> 0
B15: =IF((B10+B11+B13+B12)=F5," ","!!!") ->  | I15: Lime Sources Comparison
B16: =IF($B$15="!!!","Sum of zone areas does not equal total area"," ") ->  | I16: Source 1 | K16: Source 2 | M16: Source 3 | O16: Source 4
F17: Enter | G17: Source
F19: Enter | G19: Lime Cost $/t
G21: NV or ENV %
G23: Tonnes required | I23: =SUM(S10:S13) -> 0 | K23: =SUM(T10:T13) -> 0 | M23: =SUM(U10:U13) -> 0 | O23: =SUM(V10:V13) -> 0
F26: Enter | G26: Distance from source | J26: km | L26: km | N26: km | P26: km
D28: Either | F28: Enter | G28: Freight cost ($/km/t) | J28: $/km/t | L28: $/km/t | N28: $/km/t | P28: $/km/t
I30: =(I26*I28) -> 0 | J30: $/t | K30: =(K26*K28) -> 0 | L30: $/t | M30: =(M26*M28) -> 0 | N30: $/t | O30: =(O26*O28) -> 0 | P30: $/t
F32: Enter | G32: Spreading cost | J32: $/ha | L32: $/ha | N32: $/ha | P32: $/ha
J33: =+I32*($F$5/I23) ->  | L33: =+K32*($F$5/K23) ->  | N33: =+M32*($F$5/M23) ->  | P33: =+O32*($F$5/O23) -> 
D34: Or | F34: Enter | G34: Contract F&S cost | J34: $/t | L34: $/t | N34: $/t | P34: $/t
G36: Total $/t | I36: =IF(ISERROR(I19+I30+J33+I34)," ",(I19+I30+J33+I34)) ->  | K36: =IF(ISERROR(K19+K30+L33+K34)," ",((K19+K30+L33+K34))) ->  | M36: =IF(ISERROR(M19+M30+N33+M34)," ",((M19+M30+N33+M34))) ->  | O36: =IF(ISERROR(O19+O30+P33+O34)," ",((O19+O30+P33+O34))) -> 
G38: Product rate & cost | I38: Rate t/ha | J38: Cost $/ha | K38: Rate t/ha | L38: Cost $/ha | M38: Rate t/ha | N38: Cost $/ha | O38: Rate t/ha | P38: Cost $/ha
G39: Zone 1 | I39: =VALUE(S52) -> 0 | J39: =I39*$I$36 ->  | K39: =VALUE(T52) -> 0 | L39: =K39*$K$36 ->  | M39: =VALUE(U52) -> 0 | N39: =M39*$M$36 ->  | O39: =VALUE(V52) -> 0 | P39: =O39*$O$36 -> 
G40: Zone 2 | I40: =VALUE(S53) -> 0 | J40: =I40*$I$36 ->  | K40: =VALUE(T53) -> 0 | L40: =K40*$K$36 ->  | M40: =VALUE(U53) -> 0 | N40: =M40*$M$36 ->  | O40: =VALUE(V53) -> 0 | P40: =O40*$O$36 -> 
G41: Zone 3 | I41: =VALUE(S54) -> 0 | J41: =I41*$I$36 ->  | K41: 0 | M41: 0 | O41: 0
G42: Zone 4 | I42: 0 | J42: =I42*$I$36 ->  | K42: 0 | M42: 0 | O42: 0
G43: Paddock | J43: =I45/$F$5 ->  | L43: =K45/$F$5 ->  | N43: =M45/$F$5 ->  | P43: =O45/$F$5 -> 
G45: Cost per paddock | I45: =IF(ISERROR(($B$10*J39)+($B$11*J40)+($B$12*J41)+($B$13*J42))," ",($B$10*J39)+($B$11*J40)+($B$12*J41)+($B$13*J42)) ->  | K45: =IF(ISERROR(($B$10*L39)+($B$11*L40)+($B$12*L41)+($B$13*L42))," ",($B$10*L39)+($B$11*L40)+($B$12*L41)+($B$13*L42)) ->  | M45: =IF(ISERROR(($B$10*N39)+($B$11*N40)+($B$12*N41)+($B$13*N42))," ",($B$10*N39)+($B$11*N40)+($B$12*N41)+($B$13*N42)) ->  | O45: =IF(ISERROR(($B$10*P39)+($B$11*P40)+($B$12*P41)+($B$13*P42))," ",($B$10*P39)+($B$11*P40)+($B$12*P41)+($B$13*P42)) -> 
G47: Quantity of lime t | I47: =SUM(S47:S50) -> 0 | K47: =SUM(T47:T50) -> 0 | M47: =SUM(U47:U50) -> 0 | O47: =SUM(V47:V50) -> 0 | S47: =IF(ISERROR(I39*$B$10),"0",(I39*$B$10)) -> 0 | T47: =IF(ISERROR(K39*$B$10),"0",(K39*$B$10)) -> 0 | U47: =IF(ISERROR(M39*$B$10),"0",(M39*$B$10)) -> 0 | V47: =IF(ISERROR(O39*$B$10),"0",(O39*$B$10)) -> 0
S48: =IF(ISERROR(I40*$B$11),"0",(I40*$B$11)) -> 0 | T48: =IF(ISERROR(K40*$B$11),"0",(K40*$B$11)) -> 0 | U48: =IF(ISERROR(M40*$B$11),"0",(M40*$B$11)) -> 0 | V48: =IF(ISERROR(O40*$B$11),"0",(O40*$B$11)) -> 0
S49: =IF(ISERROR(I41*$B$12),"0",(I41*$B$12)) -> 0 | T49: =IF(ISERROR(K41*$B$12),"0",(K41*$B$12)) -> 0 | U49: =IF(ISERROR(M41*$B$12),"0",(M41*$B$12)) -> 0 | V49: =IF(ISERROR(O41*$B$12),"0",(O41*$B$12)) -> 0
S50: =IF(ISERROR(I42*$B$13),"0",(I42*$B$13)) -> 0 | T50: =IF(ISERROR(K42*$B$13),"0",(K42*$B$13)) -> 0 | U50: =IF(ISERROR(M42*$B$13),"0",(M42*$B$13)) -> 0 | V50: =IF(ISERROR(O42*$B$13),"0",(O42*$B$13)) -> 0
S52: =IF(ISERROR($H$10*100/$I$21),"0",($H$10*100/$I$21)) -> 0 | T52: =IF(ISERROR($H$10*100/$K$21),"0",($H$10*100/$K$21)) -> 0 | U52: =IF(ISERROR($H$10*100/$M$21),"0",($H$10*100/$M$21)) -> 0 | V52: =IF(ISERROR($H$10*100/$O$21),"0",($H$10*100/$O$21)) -> 0
S53: =IF(ISERROR($H$11*100/$I$21),"0",($H$11*100/$I$21)) -> 0 | T53: =IF(ISERROR($H$11*100/$K$21),"0",($H$11*100/$K$21)) -> 0 | U53: =IF(ISERROR($H$11*100/$M$21),"0",($H$11*100/$M$21)) -> 0 | V53: =IF(ISERROR($H$11*100/$O$21),"0",($H$11*100/$O$21)) -> 0
S54: =IF(ISERROR($H$12*100/$I$21),"0",($H$12*100/$I$21)) -> 0 | T54: =IF(ISERROR($H$12*100/$K$21),"0",($H$12*100/$K$21)) -> 0 | U54: =IF(ISERROR($H$12*100/$M$21),"0",($H$12*100/$M$21)) -> 0 | V54: =IF(ISERROR($H$12*100/$O$21),"0",($H$12*100/$O$21)) -> 0
S55: =IF(ISERROR($H$13*100/$I$21),"0",($H$13*100/$I$21)) -> 0 | T55: =IF(ISERROR($H$13*100/$K$21),"0",($H$13*100/$K$21)) -> 0 | U55: =IF(ISERROR($H$13*100/$M$21),"0",($H$13*100/$M$21)) -> 0 | V55: =IF(ISERROR($H$13*100/$O$21),"0",($H$13*100/$O$21)) -> 0

Sheet How to use tool

Sheet Application rates
A9: Lime application rates:
A10: !!! | B10: Check application rate information
A12: Nutrient deficiencies, particularly manganese, can occur if too much lime is applied at once, especially if the lime is not incorporated into the topsoil.
A13: As a general guide, single applications of pure lime (Neutralising Value 100%) should not exceed 2.0 t/ha for a sand; 3.0 t/ha for a sandy loam; and 4.0 t/ha for a loam to clay loam soil.
A14: If more lime than this is required to lift pH to the desired level, then split applications over a period of years might be appropriate.
A15: If rates higher than this are used, consideration should be given to mixing the lime into the soil with a tine or disc implement.
A16: To avoid exceeding these rates in the calculator, lower the target pH until the warning message disappears.
A17: Soils prone to nutrient deficiencies should be monitored and fertilised accordingly after liming.
A18: Soils with low organic carbon levels have low buffering capacity and can be affected by overliming.
A19: When a “low” organic carbon percentage is selected in the calculator, the lime rate is adjusted accordingly.

Sheet ENV
A9: Lime Effectiveness:
A10: NV or ENV %
A12: The effectiveness of lime in neutralising acidity depends on a number of factors including purity, chemical composition, density, coarseness and surface area of particles of liming materials.
A14: The purity or quality is the proportion of liming materials in the substrate material, in particular the proportions of calcium and magnesium carbonates. More porous materials will generally
A15: react more quickly than denser ones, and lime particles with a greater surface area will provide more opportunities for chemical reactions to take place with acidic elements in the soil.
A16: Coarser liming materials tend to have less total particle surface area than finer ones.
A18: Neutralising Value is the analysis of the chemical composition of a liming material, particularly the proportions of calcium and magnesium carbonates. It is expressed as a comparison to the
A19: effectiveness of pure calcium carbonate which has an NV of 100.
A21: Effective Neutralising Value laboratory analysis usually is based on NV and coarseness (particle size distribution).
A23: An ENV analysis of liming materials from different sources can yield similar ENV results however more porous materials can still be more effective in neutralising materials than denser ones.
A24: Therefore ENV is more useful in comparing products from a similar source (eg ground limes with ground limes) rather than from different ones.
A26: Be careful when entering NV or ENV values that consistent measures are used to compare different products.

Sheet data (hidden)
B1: 4 | G1: Select from list | O1: Source | P1: Product | Q1: Year | V1: NV | AD1: Direct cost | AE1: Comments
B2: 4.5 | D2: loam | G2: Agricola: YP | V2: (%) | AD2: $/t
B3: 5 | D3: clay loam | G3: Agricola: Robe | O3: Agricola: YP | Q3: Dolomite | V3: 99 | AD3: 54
B4: 5.5 | D4: sandy loam | G4: Agricola: SC | O4: Agricola: Robe | Q4: Lime | V4: 85 | AD4: 20
B5: 6 | D5: sand | G5: Brian Foster | O5: Agricola: SC | Q5: Magnesite | V5: 85 | AD5: 52
G6: Bruce Teagle | O6: Brian Foster | Q6: Limesand | V6: 97 | AD6: 12
G7: Cawtes | O7: Bruce Teagle | Q7: Limestone | V7: 82 | AD7: 17
G8: Clare Quarry | O8: Cawtes | Q8: Limestone | V8: 73 | AD8: 45
A9: low | G9: GEM (Burnda) | O9: Clare Quarry | Q9: Limestone | V9: 65 | AD9: 9.5
A10: med | G10: GEM (Martes) | O10: GEM (Burnda) | Q10: Dolomite | V10: 104 | AD10: 21
A11: high | G11: GEM (Telford) | O11: GEM (Martes) | Q11: Limestone | V11: 97 | AD11: 17
G12: Goolwa | O12: GEM (Telford) | Q12: Limestone | V12: 98 | AD12: 17
G13: Halloran | O13: Goolwa | Q13: Limestone | V13: 81 | AD13: 15
G14: Henschke | O14: Halloran | Q14: Limesand | V14: 83 | AD14: 7
A15: wheat (sens) | G15: Bruhns MGL | O15: Henschke | Q15: Limestone | V15: 97 | AD15: 20
A16: wheat (tol) | G16: Little Sahara | O16: Bruhns MGL | Q16: Limestone | V16: 97 | AD16: 18
A17: barley | G17: PenLime (Angaston) | O17: Little Sahara | Q17: Limesand | V17: 77 | AD17: 7
A18: triticale | G18: Whitehead | O18: PenLime (Angaston) | Q18: Limestone | V18: 82 | AD18: 29
A19: beans | G19: Sibelco (Caroline) | O19: Whitehead | Q19: Dolomite | V19: 99 | AD19: 25
A20: canola | G20: Sibleco (Tant) | O20: Sibelco (Caroline) | Q20: Limestone | V20: 92 | AD20: 25
A21: field pea | G21: Southern Quarry | O21: Sibleco (Tant) | Q21: Dolomite | V21: 97 | AD21: 29.5
A22: chick pea | O22: Southern Quarry | Q22: Limestone | V22: 88 | AD22: Resell only
A23: lentils
A24: pasture (sens)
A25: pasture (tol)

Sheet location of sources
K1: Location of main lime sources in SA
K4: Note:
K5: This information is a guide only and is based on data available at the time of development.
K6: For more accurate, up-to date information and prices, contact the suppliers.
K8: Current and potential lime sources | M8: NV% | N8: ENV% | O8: ENV% | P8: Type
O9: Est. ws*
K10: 1 | L10: Adelaide Brighton Cement Ltd: Penrice | M10: 98 | N10: 91 | P10: Limestone
K11: 2 | L11: Adelaide Brighton Cement Ltd: Southern Quarries | M11: 90 | N11: 90 | P11: Limestone
K12: 3 | L12: Agricola Mining Pty Ltd: Daly Head | M12: 99 | N12: 52 | O12: 104 | P12: Dolomite
K13: 4 | L13: Agricola Mining Pty Ltd: Kongorong | M13: 100 | N13: 80 | P13: Limestone
K14: 5 | L14: Agricola Mining Pty Ltd: Robe | M14: 82 | N14: 36 | O14: 72 | P14: Limestone
K15: 6 | L15: Agricola Mining Pty Ltd: Salt Creek | M15: 85 | N15: 27 | P15: Magnesite
K16: 7 | L16: Brian Foster | M16: 97 | N16: 77 | P16: Limesand
K17: 8 | L17: Bruce Teagle Nomineees Pty Ltd | M17: 97 | N17: 80 | P17: Limestone
K18: 9 | L18: Cawte's Ag Lime Pty Ltd | M18: 73 | N18: 55 | P18: Limestone
K19: 10 | L19: Clare Quarry Pty Ltd | M19: 50 | N19: 48 | P19: Limestone
K20: 11 | L20: Cleve | M20: 68 | N20: 30 | P20: Limestone
K21: 12 | L21: DK Quarries Pty Ltd | M21: 100 | N21: 76 | P21: Limesand
K22: 13 | L22: Emu Bay Limesand | M22: 42 | N22: 36 | P22: Limesand
K23: 14 | L23: EP Limesand | M23: 94 | N23: 71 | P23: Limesand
K24: 15 | L24: Gambier Earth Movers Pty Ltd: Burnda Rd | M24: 104 | N24: 79 | P24: Dolomite
K25: 16 | L25: Gambier Earth Movers Pty Ltd: Marte's Quarry | M25: 97 | N25: 48 | P25: Limestone
K26: 17 | L26: Gambier Earth Movers Pty Ltd: Telford's Quarry | M26: 98 | N26: 77 | P26: Limestone
K27: 18 | L27: Goolwa Quarries Pty Ltd | M27: 81 | N27: 35 | P27: Limestone
K28: 19 | L28: Halloran Earthmovers | M28: 71 | N28: 55 | P28: Limesand
K29: 20 | L29: Henschke Industries Pty Ltd | M29: 97 | N29: 70 | P29: Limestone
K30: 21 | L30: Kulpara Mine | M30: 91 | N30: 57 | P30: Dolomite
K31: 22 | L31: Mt Gambier Limestone: Bruhns | M31: 100 | N31: 78 | P31: Limestone
K32: 23 | L32: Osier Pty Ltd (Little Sahara) | M32: 83 | N32: 68 | P32: Limesand
K33: 24 | L33: Peter Whitehead Pty Ltd | M33: 99 | N33: 73 | P33: Dolomite
K34: 25 | L34: Sibelco Australia Ltd: Caroline | M34: 92 | N34: 67 | P34: Limestone
K35: 26 | L35: Sibelco Australia Ltd: Tantanooola | M35: 97 | N35: 81 | P35: Dolomite
K36: 27 | L36: Wiseman Limesand | M36: 90 | N36: 72 | P36: Limesand
N38: *ENV% Est. ws = ENV Calculated using wet sieving

Sheet Example
A1: Lime Sources Cost Comparison | E1: Example
A3: Lime rate calculator
C4: Enter | F4: Enter | S4: Lime rate factor
B5: Paddock name | C5: Fortune | F5: 120 | G5: ha | S5: =IF($D$10="loam",4,IF($D$10="clay loam",4,IF($D$10="sandy loam",3,IF($D$10="sand",2,0)))) -> 4
S6: =IF($D$11="loam",4,IF($D$11="clay loam",4,IF($D$11="sandy loam",3,IF($D$11="sand",2,0)))) -> 2
A7: Zone | B7: Area | C7: Initial | D7: Soil | E7: Target | F7: Lime rate | G7: Org C % | H7: Adjusted | S7: =IF($D$12="loam",4,IF($D$12="clay loam",4,IF($D$12="sandy loam",3,IF($D$12="sand",2,0)))) -> 3
B8: ha | C8: pH (CaCl2) | D8: Texture | E8: pH (CaCl2) | H8: Lime rate | S8: =IF($D$13="loam",4,IF($D$13="clay loam",4,IF($D$13="sandy loam",3,IF($D$13="sand",2,0)))) -> 4
B9: Enter | C9: Enter | D9: Select | E9: Enter | G9: Select
A10: 1 | B10: 20 | C10: 4.2 | D10: loam | E10: 5.5 | F10: =IF(B10<=0," ",(IF(E10>C10,+(E10-C10)*$S$5,0))) -> 5.2 | G10: med | H10: =IF(G10="low",F10-(F10*0.25),F10) -> 5.2 | I10: =IF(E10-C10>1,"!!!"," ") -> !!! | J10: =IF(I10="!!!","See application rate info"," ") -> See application rate info | S10: =IF(ISERROR($H$10*$B$10*1/I21*100),"0",($H$10*$B$10*1/I21*100)) -> 182.4561404 | T10: =IF(ISERROR($H$10*$B$10*1/K21*100),"0",($H$10*$B$10*1/K21*100)) -> 114.2857143 | U10: =IF(ISERROR($H$10*$B$10*1/M21*100),"0",($H$10*$B$10*1/M21*100)) -> 116.8539326 | V10: =IF(ISERROR($H$10*$B$10*1/O21*100),"0",($H$10*$B$10*1/O21*100)) -> 144.4444444
A11: 2 | B11: 25 | C11: 4.2 | D11: sand | E11: 5.2 | F11: =IF(B11<=0," ",(IF(E11>C11,+(E11-C11)*$S$6,0))) -> 2 | G11: low | H11: =IF(G11="low",F11-(F11*0.25),F11) -> 1.5 | I11: =IF(E11-C11>1,"!!!"," ") ->  | J11: =IF(I11="!!!","See application rate information"," ") ->  | S11: =IF(ISERROR($H$11*$B$11*1/I21*100),"0",($H$11*$B$11*1/I21*100)) -> 65.78947368 | T11: =IF(ISERROR($H$11*$B$11*1/K21*100),"0",($H$11*$B$11*1/K21*100)) -> 41.20879121 | U11: =IF(ISERROR($H$11*$B$11*1/M21*100),"0",($H$11*$B$11*1/M21*100)) -> 42.13483146 | V11: =IF(ISERROR($H$11*$B$11*1/O21*100),"0",($H$11*$B$11*1/O21*100)) -> 52.08333333
A12: 3 | B12: 35 | C12: 4.5 | D12: sandy loam | E12: 5.5 | F12: =IF(B12<=0," ",(IF(E12>C12,+(E12-C12)*$S$7,0))) -> 3 | G12: low | H12: 2.25 | I12: =IF(E12-C12>1,"!!!"," ") ->  | J12: =IF(I12="!!!","See application rate information"," ") ->  | S12: =IF(ISERROR($H$12*$B$12*1/I21*100),"0",($H$12*$B$12*1/I21*100)) -> 138.1578947 | T12: =IF(ISERROR($H$12*$B$12*1/K21*100),"0",($H$12*$B$12*1/K21*100)) -> 86.53846154 | U12: =IF(ISERROR($H$12*$B$12*1/M21*100),"0",($H$12*$B$12*1/M21*100)) -> 88.48314607 | V12: =IF(ISERROR($H$12*$B$12*1/O21*100),"0",($H$12*$B$12*1/O21*100)) -> 109.375
A13: 4 | B13: 40 | C13: 6 | D13: loam | E13: 5.5 | F13: =IF(B13<=0," ",(IF(E13>C13,+(E13-C13)*$S$8,0))) -> 0 | G13: med | H13: 0 | I13: =IF(E13-C13>1,"!!!"," ") ->  | J13: =IF(I13="!!!","See application rate information"," ") ->  | S13: =IF(ISERROR($H$13*$B$13*1/I21*100),"0",($H$13*$B$13*1/I21*100)) -> 0 | T13: =IF(ISERROR($H$13*$B$13*1/K21*100),"0",($H$13*$B$13*1/K21*100)) -> 0 | U13: =IF(ISERROR($H$13*$B$13*1/M21*100),"0",($H$13*$B$13*1/M21*100)) -> 0 | V13: =IF(ISERROR($H$13*$B$13*1/O21*100),"0",($H$13*$B$13*1/O21*100)) -> 0
B15: =IF((B10+B11+B13+B12)=F5," ","!!!") ->  | I15: Lime Sources Comparison
B16: =IF($B$15="!!!","Sum of zone areas does not equal total area"," ") ->  | I16: Source 1 | K16: Source 2 | M16: Source 3 | O16: Source 4
F17: Enter | G17: Source | I17: Kulpara | K17: Angaston | M17: New mine | O17: Agricola Robe
F19: Enter | G19: Lime Cost $/t | I19: 16 | K19: 26 | M19: 24
G21: NV or ENV % | I21: 57 | K21: 91 | M21: 89 | O21: 72
G23: Tonnes required | I23: =SUM(S10:S13) -> 386.4035088 | K23: =SUM(T10:T13) -> 242.032967 | M23: =SUM(U10:U13) -> 247.4719101 | O23: =SUM(V10:V13) -> 305.9027778
F26: Enter | G26: Distance from source | I26: 150 | J26: km | K26: 171 | L26: km | N26: km | P26: km
D28: Either | F28: Enter | G28: Freight cost ($/km/t) | I28: 0.18 | J28: $/km/t | K28: 0.18 | L28: $/km/t | N28: $/km/t | P28: $/km/t
I30: =(I26*I28) -> 27 | J30: $/t | K30: =(K26*K28) -> 30.78 | L30: $/t | M30: =(M26*M28) -> 0 | N30: $/t | O30: =(O26*O28) -> 0 | P30: $/t
F32: Enter | G32: Spreading cost | I32: 12 | J32: $/ha | K32: 12 | L32: $/ha | N32: $/ha | O32: 12 | P32: $/ha
J33: =+I32*($F$5/I23) -> 3.726674234 | L33: =+K32*($F$5/K23) -> 5.949602724 | N33: =+M32*($F$5/M23) -> 0 | P33: =+O32*($F$5/O23) -> 4.70737798
D34: Or | F34: Enter | G34: Contract F&S cost | J34: $/t | L34: $/t | M34: 30 | N34: $/t | O34: 70 | P34: $/t
G36: Total $/t | I36: =IF(ISERROR(I19+I30+J33+I34)," ",(I19+I30+J33+I34)) -> 46.72667423 | K36: =IF(ISERROR(K19+K30+L33+K34)," ",((K19+K30+L33+K34))) -> 62.72960272 | M36: =IF(ISERROR(M19+M30+N33+M34)," ",((M19+M30+N33+M34))) -> 54 | O36: =IF(ISERROR(O19+O30+P33+O34)," ",((O19+O30+P33+O34))) -> 74.70737798
G38: Product rate & cost | I38: Rate t/ha | J38: Cost $/ha | K38: Rate t/ha | L38: Cost $/ha | M38: Rate t/ha | N38: Cost $/ha | O38: Rate t/ha | P38: Cost $/ha
G39: Zone 1 | I39: =IF(ISERROR($H$10*100/$I$21)," ",($H$10*100/$I$21)) -> 9.122807018 | J39: =I39*$I$36 -> 426.2784316 | K39: =IF(ISERROR($H$10*100/$K$21)," ",($H$10*100/$K$21)) -> 5.714285714 | L39: =K39*$K$36 -> 358.4548727 | M39: =IF(ISERROR($H$10*100/$M$21)," ",($H$10*100/$M$21)) -> 5.842696629 | N39: =M39*$M$36 -> 315.505618 | O39: =IF(ISERROR($H$10*100/$O$21)," ",($H$10*100/$O$21)) -> 7.222222222 | P39: =O39*$O$36 -> 539.5532854
G40: Zone 2 | I40: =IF(ISERROR($H$11*100/$I$21)," ",($H$11*100/$I$21)) -> 2.631578947 | J40: =I40*$I$36 -> 122.9649322 | K40: =IF(ISERROR($H$11*100/$K$21)," ",($H$11*100/$K$21)) -> 1.648351648 | L40: =K40*$K$36 -> 103.4004441 | M40: =IF(ISERROR($H$11*100/$M$21)," ",($H$11*100/$M$21)) -> 1.685393258 | N40: =M40*$M$36 -> 91.01123596 | O40: =IF(ISERROR($H$11*100/$O$21)," ",($H$11*100/$O$21)) -> 2.083333333 | P40: =O40*$O$36 -> 155.6403708
G41: Zone 3 | I41: =IF(ISERROR($H$12*100/$I$21)," ",($H$12*100/$I$21)) -> 3.947368421 | J41: =I41*$I$36 -> 184.4473983 | K41: =IF(ISERROR($H$12*100/$K$21)," ",($H$12*100/$K$21)) -> 2.472527473 | L41: 155.1006661 | M41: =IF(ISERROR($H$12*100/$M$21)," ",($H$12*100/$M$21)) -> 2.528089888 | N41: 136.5168539 | O41: =IF(ISERROR($H$12*100/$O$21)," ",($H$12*100/$O$21)) -> 3.125 | P41: 233.4605562
G42: Zone 4 | I42: =IF(ISERROR($H$13*100/$I$21)," ",($H$13*100/$I$21)) -> 0 | J42: =I42*$I$36 -> 0 | K42: =IF(ISERROR($H$13*100/$K$21)," ",($H$13*100/$K$21)) -> 0 | L42: 0 | M42: =IF(ISERROR($H$13*100/$M$21)," ",($H$13*100/$M$21)) -> 0 | N42: 0 | O42: =IF(ISERROR($H$13*100/$O$21)," ",($H$13*100/$O$21)) -> 0 | P42: 0
G43: Paddock | J43: =I45/$F$5 -> 150.4612573 | L43: =K45/$F$5 -> 126.5219322 | N43: =M45/$F$5 -> 111.3623596 | P43: =O45/$F$5 -> 190.443287
G45: Cost per paddock | I45: =IF(ISERROR(($B$10*J39)+($B$11*J40)+($B$12*J41)+($B$13*J42))," ",($B$10*J39)+($B$11*J40)+($B$12*J41)+($B$13*J42)) -> 18055.35088 | K45: =IF(ISERROR(($B$10*L39)+($B$11*L40)+($B$12*L41)+($B$13*L42))," ",($B$10*L39)+($B$11*L40)+($B$12*L41)+($B$13*L42)) -> 15182.63187 | M45: =IF(ISERROR(($B$10*N39)+($B$11*N40)+($B$12*N41)+($B$13*N42))," ",($B$10*N39)+($B$11*N40)+($B$12*N41)+($B$13*N42)) -> 13363.48315 | O45: =IF(ISERROR(($B$10*P39)+($B$11*P40)+($B$12*P41)+($B$13*P42))," ",($B$10*P39)+($B$11*P40)+($B$12*P41)+($B$13*P42)) -> 22853.19444
G47: Quantity of lime t | I47: =SUM(S47:S50) -> 386.4035088 | K47: =SUM(T47:T50) -> 242.032967 | M47: =SUM(U47:U50) -> 247.4719101 | O47: =SUM(V47:V50) -> 305.9027778 | S47: =IF(ISERROR(I39*$B$10),"0",(I39*$B$10)) -> 182.4561404 | T47: =IF(ISERROR(K39*$B$10),"0",(K39*$B$10)) -> 114.2857143 | U47: =IF(ISERROR(M39*$B$10),"0",(M39*$B$10)) -> 116.8539326 | V47: =IF(ISERROR(O39*$B$10),"0",(O39*$B$10)) -> 144.4444444
S48: =IF(ISERROR(I40*$B$11),"0",(I40*$B$11)) -> 65.78947368 | T48: =IF(ISERROR(K40*$B$11),"0",(K40*$B$11)) -> 41.20879121 | U48: =IF(ISERROR(M40*$B$11),"0",(M40*$B$11)) -> 42.13483146 | V48: =IF(ISERROR(O40*$B$11),"0",(O40*$B$11)) -> 52.08333333
S49: =IF(ISERROR(I41*$B$12),"0",(I41*$B$12)) -> 138.1578947 | T49: =IF(ISERROR(K41*$B$12),"0",(K41*$B$12)) -> 86.53846154 | U49: =IF(ISERROR(M41*$B$12),"0",(M41*$B$12)) -> 88.48314607 | V49: =IF(ISERROR(O41*$B$12),"0",(O41*$B$12)) -> 109.375
S50: =IF(ISERROR(I42*$B$13),"0",(I42*$B$13)) -> 0 | T50: =IF(ISERROR(K42*$B$13),"0",(K42*$B$13)) -> 0 | U50: =IF(ISERROR(M42*$B$13),"0",(M42*$B$13)) -> 0 | V50: =IF(ISERROR(O42*$B$13),"0",(O42*$B$13)) -> 0

Sheet Sheet5 (hidden)

Sheet Sheet4 (hidden)

Sheet Sheet3 (hidden)

Sheet Sheet2 (hidden)

Sheet Notes (hidden)
A1: Version
A3: 09.12.16 | B3: M-AY | C3: Updated NV and Env data Penrice at request of Hamish Weston, Penrice. APAL analysis provided
A5: 21.01.2017 | B5: M-AY | C5: Updated NPV and ENV Southern Quarries; deleted "Adelaide Brighton Cement" from Southern Quarries' name at request of Adam Staltari Southern Quarries. APAL analysis provided
C6: Included cautionary note on ENV/NV information tab regarding consistent use of NV or ENV values.
A8: 27.01.2017 | B8: M-AY | C8: Added Print Macro
A10: 31.01.2017 | B10: M-AY | C10: Changed formula in rate calculator so 0 ha doesn't generate lime rate.
C11: Added "Clear rate calculator" and "Clear sources comparison" buttons / macros
C12: Realigned information and command buttons
A14: 06.03.2017 | B14: M-AY | C14: Error reported by Roger Cox and Steve Richmond - if data not entered for all zones, "0" in ISERROR formulae generate errors in addition of zone cell data.
C15: ISERROR formulae removed, conditional formatting used to blank out #value messages and 0 returns in cells.
A17: 22.03.2017 | B17: M-AY | C17: Added in example sheet
A19: 08.05.2017 | B19: M-AY | C19: Formatting " " in if statements resulting in blank "cost per paddock" cell. Changed " " to "0" in zone / rate t/ha cells in formulae.
C20: Created table S52 - copied formulae to here; inserted value formulae in zone/rate t/ha table and conditonally formatted.
A22: 10.01.2018 | B22: M-AY | C22: Updated Adelaide Brighton Cement Penrice ENV values for product "Penlime Plus" as per APAL analysis 16.06.17.
C23: Added note in "How to use tool" tab regarding seeking advice from suppliers on prices and products.
A25: 02.06.2020 | B25: M-AY | C25: Replaced GRDC logo with newer version; removed PIRSA Premium Clean Environment Logo; changed DEWNR logo to DEW logo.
C26: Updated version date.
C27: Added $/t/km to freight cost input tab on calculator and example
C28: Changed wording in ENV sheet - replaced word "components" with "carbonates".
C29: Location of lime sources - replaced map and table with updated versions provided by APH.
C30: Example - changed order of examples; added bubble to explain how "supply and transport" cost worked in calculations. Deleted Salt Creek example, replaced with Agricola Robe.

Sheet Sheet1 (hidden)
